[Event "Early-Titled-Tuesday-Blitz-November-28-2023"]
[Site "Chess.com"]
[Date "2023.11.28"]
[Round "8"]
[White "Viacheslav92"]
[Black "Narek_Ghimoyan"]
[Result "1-0"]
[WhiteElo "2566"]
[BlackElo "2319"]
[TimeControl "180+1"]
[EndTime "9:36:12 PST"]
[Termination "Viacheslav92 won by resignation"]

1. e4 {[%clk 0:02:59.6]} 1... c5 {[%clk 0:02:56.3]} 2. Nf3 {[%clk 0:02:59.3]}
2... d6 {[%clk 0:02:56.8]} 3. d4 {[%clk 0:02:59.9]} 3... cxd4 {[%clk 0:02:57.7]}
4. Nxd4 {[%clk 0:03:00.8]} 4... Nf6 {[%clk 0:02:57.3]} 5. Nc3 {[%clk 0:03:01.4]}
5... a6 {[%clk 0:02:57.8]} 6. Rg1 {[%clk 0:03:01.8]} 6... e5 {[%clk 0:02:57]} 7.
Nb3 {[%clk 0:03:01.9]} 7... h5 {[%clk 0:02:56.9]} 8. h3 {[%clk 0:03:01.9]} 8...
Be6 {[%clk 0:02:53.2]} 9. g4 {[%clk 0:03:02.5]} 9... hxg4 {[%clk 0:02:51.7]} 10.
hxg4 {[%clk 0:03:03.4]} 10... d5 {[%clk 0:02:37.8]} 11. exd5 {[%clk 0:03:04.3]}
11... Nxd5 {[%clk 0:02:37]} 12. Nxd5 {[%clk 0:03:05.1]} 12... Qxd5 {[%clk
0:02:34.6]} 13. Qxd5 {[%clk 0:03:04.5]} 13... Bxd5 {[%clk 0:02:34.2]} 14. Be3
{[%clk 0:03:05.4]} 14... Nc6 {[%clk 0:02:28.3]} 15. O-O-O {[%clk 0:03:04.8]}
15... O-O-O {[%clk 0:02:27.3]} 16. Be2 {[%clk 0:03:04.6]} 16... Be7 {[%clk
0:02:26.6]} 17. g5 {[%clk 0:03:04.6]} 17... Be6 {[%clk 0:02:24.5]} 18. Nc5
{[%clk 0:03:03.2]} 18... Bxc5 {[%clk 0:02:23.3]} 19. Bxc5 {[%clk 0:03:04.1]}
19... Nd4 {[%clk 0:02:20.3]} 20. Bxd4 {[%clk 0:02:59.1]} 20... exd4 {[%clk
0:02:16.8]} 21. Bd3 {[%clk 0:02:57.7]} 21... Rh2 {[%clk 0:02:14.3]} 22. f4
{[%clk 0:02:56.4]} 22... g6 {[%clk 0:02:14]} 23. Rd2 {[%clk 0:02:48.8]} 23...
Rdh8 {[%clk 0:02:08.6]} 24. Re1 {[%clk 0:02:40]} 24... R8h4 {[%clk 0:02:00.6]}
25. Rxh2 {[%clk 0:02:37.2]} 25... Rxh2 {[%clk 0:01:59.3]} 26. Re2 {[%clk
0:02:37.8]} 26... Rh1+ {[%clk 0:01:40.2]} 27. Kd2 {[%clk 0:02:36.6]} 27... Bg4
{[%clk 0:01:40.2]} 28. Re1 {[%clk 0:02:30.1]} 28... Rh2+ {[%clk 0:01:39.1]} 29.
Kc1 {[%clk 0:02:29.8]} 29... Rf2 {[%clk 0:01:38.7]} 30. Rf1 {[%clk 0:02:29]}
30... Rg2 {[%clk 0:01:30.9]} 31. Re1 {[%clk 0:02:28.5]} 31... Kc7 {[%clk
0:01:19.8]} 32. b3 {[%clk 0:02:24.1]} 32... Kd6 {[%clk 0:01:17]} 33. Re4 {[%clk
0:02:17.9]} 33... Kd5 {[%clk 0:01:11.2]} 34. Re7 {[%clk 0:02:09.8]} 34... Bf5
{[%clk 0:01:02.1]} 35. Bxf5 {[%clk 0:02:02.3]} 35... gxf5 {[%clk 0:01:01.3]} 36.
Re5+ {[%clk 0:02:03]} 36... Kd6 {[%clk 0:00:36.9]} 37. Rxf5 {[%clk 0:02:02.3]}
37... Ke6 {[%clk 0:00:33.9]} 38. Rf6+ {[%clk 0:01:59.9]} 38... Kd5 {[%clk
0:00:25]} 39. Rxf7 {[%clk 0:01:50.5]} 39... Ke4 {[%clk 0:00:23.1]} 40. Re7+
{[%clk 0:01:47.2]} 40... Kxf4 {[%clk 0:00:22.6]} 41. Rxb7 {[%clk 0:01:47.8]}
41... Rxg5 {[%clk 0:00:21]} 42. Rb6 {[%clk 0:01:42]} 42... a5 {[%clk 0:00:20.5]}
43. a4 {[%clk 0:01:42.3]} 43... Ke3 {[%clk 0:00:20.4]} 44. Re6+ {[%clk
0:01:38.1]} 44... Kf4 {[%clk 0:00:19.8]} 45. Kd2 {[%clk 0:01:35.4]} 45... Rc5
{[%clk 0:00:19.3]} 46. Rb6 {[%clk 0:01:32.6]} 46... Ke4 {[%clk 0:00:17.6]} 47.
Re6+ {[%clk 0:01:31.1]} 47... Kd5 {[%clk 0:00:17.4]} 48. Re8 {[%clk 0:01:28.9]}
48... Rc7 {[%clk 0:00:15.7]} 49. Rh8 {[%clk 0:01:24.3]} 49... Kc6 {[%clk
0:00:13.2]} 50. Rh4 {[%clk 0:01:14.7]} 50... Kc5 {[%clk 0:00:13]} 51. Rh5+
{[%clk 0:01:10.7]} 51... Kb4 {[%clk 0:00:12.8]} 52. Rb5+ {[%clk 0:01:02.2]}
52... Ka3 {[%clk 0:00:12.5]} 53. Rxa5 {[%clk 0:00:41.8]} 53... Kb2 {[%clk
0:00:13.4]} 54. Rb5 {[%clk 0:00:39.3]} 54... Rc3 {[%clk 0:00:11.8]} 55. a5
{[%clk 0:00:34.9]} 55... Rxc2+ {[%clk 0:00:09.8]} 56. Kd3 {[%clk 0:00:34.5]}
56... Rc6 {[%clk 0:00:09.5]} 57. Rb6 {[%clk 0:00:30.1]} 57... Rc7 {[%clk
0:00:06.5]} 58. b4 {[%clk 0:00:21.1]} 58... Kb3 {[%clk 0:00:05.4]} 59. b5 {[%clk
0:00:18.3]} 59... Kb4 {[%clk 0:00:05.9]} 60. a6 {[%clk 0:00:18.3]} 60... Kc5
{[%clk 0:00:04.4]} 61. Rb7 {[%clk 0:00:18.9]} 61... Rc8 {[%clk 0:00:04.6]} 62.
a7 {[%clk 0:00:17.2]} 62... Rh8 {[%clk 0:00:04.1]} 63. Rb8 {[%clk 0:00:16.7]}
63... Rh3+ {[%clk 0:00:05]} 64. Kd2 {[%clk 0:00:16]} 64... Rh2+ {[%clk
0:00:05.2]} 65. Ke1 {[%clk 0:00:15.5]} 65... Rh1+ {[%clk 0:00:04.5]} 66. Kf2
{[%clk 0:00:16]} 66... Rh2+ {[%clk 0:00:05.4]} 67. Kg1 {[%clk 0:00:16.4]} 67...
Ra2 {[%clk 0:00:04.8]} 68. a8=Q {[%clk 0:00:16.5]} 68... Ra7 {[%clk 0:00:05.7]}
69. Qxa7+ {[%clk 0:00:15.3]} 1-0

[Event "Early-Titled-Tuesday-Blitz-November-28-2023"]
[Site "Chess.com"]
[Date "2023.11.28"]
[Round "8"]
[White "LeoWin2012"]
[Black "GoValya"]
[Result "0-1"]
[WhiteElo "2248"]
[BlackElo "2221"]
[TimeControl "180+1"]
[EndTime "9:36:13 PST"]
[Termination "GoValya won by checkmate"]

1. b3 {[%clk 0:02:50]} 1... Nf6 {[%clk 0:02:58]} 2. Bb2 {[%clk 0:02:49.4]} 2...
e6 {[%clk 0:02:58.3]} 3. Nf3 {[%clk 0:02:49]} 3... Be7 {[%clk 0:02:58.6]} 4. c4
{[%clk 0:02:48.6]} 4... d5 {[%clk 0:02:58.2]} 5. d3 {[%clk 0:02:48.8]} 5... O-O
{[%clk 0:02:57.7]} 6. Nbd2 {[%clk 0:02:48]} 6... c5 {[%clk 0:02:57.5]} 7. g3
{[%clk 0:02:47.5]} 7... d4 {[%clk 0:02:57.7]} 8. Bg2 {[%clk 0:02:46.6]} 8... Nc6
{[%clk 0:02:57.8]} 9. O-O {[%clk 0:02:46.8]} 9... e5 {[%clk 0:02:56.1]} 10. Ng5
{[%clk 0:02:46.7]} 10... h6 {[%clk 0:02:50.5]} 11. Nge4 {[%clk 0:02:46.5]} 11...
Nxe4 {[%clk 0:02:49.8]} 12. Nxe4 {[%clk 0:02:45.5]} 12... f5 {[%clk 0:02:49.8]}
13. Nd2 {[%clk 0:02:44.8]} 13... Be6 {[%clk 0:02:49.8]} 14. f4 {[%clk 0:02:44]}
14... Qc7 {[%clk 0:02:43]} 15. fxe5 {[%clk 0:02:32.2]} 15... Nxe5 {[%clk
0:02:38.1]} 16. Nf3 {[%clk 0:02:32.1]} 16... Ng4 {[%clk 0:02:37.2]} 17. Bc1
{[%clk 0:02:30.6]} 17... Bd7 {[%clk 0:02:33.9]} 18. Bf4 {[%clk 0:02:30]} 18...
Bd6 {[%clk 0:02:33.1]} 19. Bd2 {[%clk 0:02:29.8]} 19... Bc6 {[%clk 0:02:28.6]}
20. Qe1 {[%clk 0:02:28]} 20... Rae8 {[%clk 0:02:27.2]} 21. Nh4 {[%clk
0:02:21.4]} 21... Bxg2 {[%clk 0:02:08.9]} 22. Nxg2 {[%clk 0:02:22.3]} 22... Re7
{[%clk 0:01:52.8]} 23. Nf4 {[%clk 0:02:19.7]} 23... Bxf4 {[%clk 0:01:50.2]} 24.
Bxf4 {[%clk 0:02:18.5]} 24... Qc6 {[%clk 0:01:45.8]} 25. Rf3 {[%clk 0:02:13.9]}
25... Rfe8 {[%clk 0:01:42.3]} 26. e4 {[%clk 0:01:52.1]} 26... dxe3 {[%clk
0:01:39.7]} 27. Qe2 {[%clk 0:01:46.5]} 27... g5 {[%clk 0:00:37.8]} 28. Bxg5
{[%clk 0:01:45.3]} 28... hxg5 {[%clk 0:00:36.4]} 29. Rxf5 {[%clk 0:01:45.6]}
29... Ne5 {[%clk 0:00:19.4]} 30. Rxg5+ {[%clk 0:01:44.8]} 30... Rg7 {[%clk
0:00:19.6]} 31. Rf5 {[%clk 0:01:30.3]} 31... Ng4 {[%clk 0:00:17.9]} 32. Raf1
{[%clk 0:01:24.9]} 32... Nf2 {[%clk 0:00:17.7]} 33. Rf3 {[%clk 0:01:13.1]} 33...
Nh3+ {[%clk 0:00:17.1]} 34. Kg2 {[%clk 0:01:06.9]} 34... Ng5 {[%clk 0:00:18]}
35. Kg1 {[%clk 0:01:02.9]} 35... Nxf3+ {[%clk 0:00:18.9]} 36. Rxf3 {[%clk
0:01:03.5]} 36... Rf8 {[%clk 0:00:19]} 37. Rxe3 {[%clk 0:01:03.6]} 37... Rgf7
{[%clk 0:00:19.5]} 38. Qg4+ {[%clk 0:01:01.4]} 38... Rg7 {[%clk 0:00:19.9]} 39.
Qe2 {[%clk 0:00:57.8]} 39... Qf6 {[%clk 0:00:20.4]} 40. Re6 {[%clk 0:00:55.3]}
40... Qd4+ {[%clk 0:00:19.4]} 41. Kg2 {[%clk 0:00:52.5]} 41... Rff7 {[%clk
0:00:20.3]} 42. Re8+ {[%clk 0:00:51.9]} 42... Rf8 {[%clk 0:00:20.7]} 43. Qe6+
{[%clk 0:00:50.2]} 43... Rf7 {[%clk 0:00:20.9]} 44. Qg6+ {[%clk 0:00:49]} 44...
Qg7 {[%clk 0:00:21.1]} 45. Qe6 {[%clk 0:00:44.2]} 45... Rxe8 {[%clk 0:00:20.7]}
46. Qxe8+ {[%clk 0:00:45.1]} 46... Qf8 {[%clk 0:00:21]} 47. Qe6 {[%clk
0:00:45.3]} 47... Qe7 {[%clk 0:00:20.4]} 48. Qd5 {[%clk 0:00:42.3]} 48... Kf8
{[%clk 0:00:19.4]} 49. Qh5 {[%clk 0:00:38.7]} 49... Rh7 {[%clk 0:00:18.5]} 50.
Qf5+ {[%clk 0:00:37.8]} 50... Kg8 {[%clk 0:00:18.3]} 51. Qg6+ {[%clk 0:00:37.4]}
51... Qg7 {[%clk 0:00:17.1]} 52. Qe8+ {[%clk 0:00:37.3]} 52... Qf8 {[%clk
0:00:16.9]} 53. Qe6+ {[%clk 0:00:37.8]} 53... Rf7 {[%clk 0:00:16.7]} 54. Qg6+
{[%clk 0:00:37.8]} 54... Qg7 {[%clk 0:00:17]} 55. Qe6 {[%clk 0:00:37]} 55... Qf6
{[%clk 0:00:16.6]} 56. Qe8+ {[%clk 0:00:35.1]} 56... Kg7 {[%clk 0:00:17]} 57.
Qe2 {[%clk 0:00:34.6]} 57... Qc6+ {[%clk 0:00:14.7]} 58. Kh3 {[%clk 0:00:33.8]}
58... Kg8 {[%clk 0:00:13]} 59. g4 {[%clk 0:00:28.4]} 59... Rh7+ {[%clk
0:00:13.8]} 60. Kg3 {[%clk 0:00:28.6]} 60... Qd6+ {[%clk 0:00:14.6]} 61. Kf3
{[%clk 0:00:27.5]} 61... Rxh2 {[%clk 0:00:14.4]} 62. Qe8+ {[%clk 0:00:27.6]}
62... Qf8+ {[%clk 0:00:13.4]} 63. Qxf8+ {[%clk 0:00:27.1]} 63... Kxf8 {[%clk
0:00:14.3]} 64. Ke4 {[%clk 0:00:27.7]} 64... Rxa2 {[%clk 0:00:14.4]} 65. Kd5
{[%clk 0:00:28.5]} 65... Rb2 {[%clk 0:00:14.8]} 66. Kxc5 {[%clk 0:00:29.4]}
66... Rxb3 {[%clk 0:00:15.6]} 67. Kd4 {[%clk 0:00:30.2]} 67... a5 {[%clk
0:00:15.4]} 68. c5 {[%clk 0:00:29.9]} 68... a4 {[%clk 0:00:15.8]} 69. Kc4 {[%clk
0:00:30.8]} 69... Rb1 {[%clk 0:00:15.4]} 70. Kc3 {[%clk 0:00:30.8]} 70... a3
{[%clk 0:00:15.5]} 71. Kc2 {[%clk 0:00:31.7]} 71... a2 {[%clk 0:00:15.9]} 72. c6
{[%clk 0:00:32.1]} 72... bxc6 {[%clk 0:00:15.6]} 73. d4 {[%clk 0:00:31.8]} 73...
a1=Q {[%clk 0:00:15]} 74. Kd3 {[%clk 0:00:32.7]} 74... Rb3+ {[%clk 0:00:14.8]}
75. Ke4 {[%clk 0:00:33.6]} 75... Qe1+ {[%clk 0:00:14.2]} 76. Kf5 {[%clk
0:00:33.9]} 76... Rf3+ {[%clk 0:00:13.3]} 77. Kg6 {[%clk 0:00:34.8]} 77... Qe4+
{[%clk 0:00:12.9]} 78. Kh5 {[%clk 0:00:34.8]} 78... Rh3+ {[%clk 0:00:12.4]} 79.
Kg5 {[%clk 0:00:35.7]} 79... Qxd4 {[%clk 0:00:12.6]} 80. Kf5 {[%clk 0:00:34.6]}
80... Qd5+ {[%clk 0:00:12.6]} 81. Kf4 {[%clk 0:00:34.8]} 81... Rf3# {[%clk
0:00:12.2]} 0-1

[Event "Early-Titled-Tuesday-Blitz-November-28-2023"]
[Site "Chess.com"]
[Date "2023.11.28"]
[Round "8"]
[White "NovozhilovSemen"]
[Black "jaskol95"]
[Result "0-1"]
[WhiteElo "2703"]
[BlackElo "2557"]
[TimeControl "180+1"]
[EndTime "9:36:26 PST"]
[Termination "jaskol95 won by resignation"]

1. d4 {[%clk 0:02:57.3]} 1... d5 {[%clk 0:02:55.2]} 2. c4 {[%clk 0:02:57.1]}
2... e5 {[%clk 0:02:55.5]} 3. Nf3 {[%clk 0:02:57.1]} 3... Nc6 {[%clk 0:02:52.6]}
4. cxd5 {[%clk 0:02:54.1]} 4... Qxd5 {[%clk 0:02:52]} 5. Nc3 {[%clk 0:02:54.3]}
5... Bb4 {[%clk 0:02:51.5]} 6. Bd2 {[%clk 0:02:50.1]} 6... Bxc3 {[%clk
0:02:51.4]} 7. Bxc3 {[%clk 0:02:51]} 7... e4 {[%clk 0:02:52]} 8. Nd2 {[%clk
0:02:43.6]} 8... e3 {[%clk 0:02:41.7]} 9. fxe3 {[%clk 0:02:44.5]} 9... Nf6
{[%clk 0:02:42.1]} 10. e4 {[%clk 0:02:44.6]} 10... Nxe4 {[%clk 0:02:42.2]} 11.
e3 {[%clk 0:02:44.9]} 11... O-O {[%clk 0:02:17.6]} 12. Bc4 {[%clk 0:02:42.5]}
12... Qf5 {[%clk 0:02:18.2]} 13. Qf3 {[%clk 0:02:34.1]} 13... Qxf3 {[%clk
0:02:16.5]} 14. gxf3 {[%clk 0:02:35]} 14... Nxc3 {[%clk 0:02:16]} 15. bxc3
{[%clk 0:02:35.9]} 15... Ne7 {[%clk 0:02:07.6]} 16. Kf2 {[%clk 0:02:33.5]} 16...
Be6 {[%clk 0:02:04.8]} 17. Bd3 {[%clk 0:02:31.7]} 17... Rfe8 {[%clk 0:02:01.7]}
18. e4 {[%clk 0:02:29.3]} 18... b6 {[%clk 0:02:00]} 19. d5 {[%clk 0:02:22.3]}
19... Bd7 {[%clk 0:01:58.2]} 20. Nb3 {[%clk 0:02:22.2]} 20... Ng6 {[%clk
0:01:57.3]} 21. Nd4 {[%clk 0:02:18.9]} 21... Nf4 {[%clk 0:01:51.4]} 22. Bf1
{[%clk 0:02:16.3]} 22... f5 {[%clk 0:01:38.8]} 23. Re1 {[%clk 0:02:11.2]} 23...
fxe4 {[%clk 0:01:38.6]} 24. fxe4 {[%clk 0:02:01.8]} 24... Rf8 {[%clk 0:01:39]}
25. Ke3 {[%clk 0:01:51.1]} 25... Rae8 {[%clk 0:01:32.3]} 26. c4 {[%clk
0:01:50.6]} 26... Ng6 {[%clk 0:01:23.3]} 27. Rg1 {[%clk 0:01:36]} 27... Ne5
{[%clk 0:01:13.4]} 28. Be2 {[%clk 0:01:31.8]} 28... c5 {[%clk 0:01:01.1]} 29.
Nb3 {[%clk 0:01:30.6]} 29... Nf7 {[%clk 0:00:53.8]} 30. Nd2 {[%clk 0:01:11.5]}
30... Nd6 {[%clk 0:00:51.7]} 31. Bg4 {[%clk 0:01:02.3]} 31... Bxg4 {[%clk
0:00:43.6]} 32. Rxg4 {[%clk 0:01:03.2]} 32... Nf5+ {[%clk 0:00:44.3]} 33. Kd3
{[%clk 0:01:03.4]} 33... Nd4 {[%clk 0:00:45]} 34. Rf1 {[%clk 0:01:00.2]} 34...
Rxf1 {[%clk 0:00:42.3]} 35. Nxf1 {[%clk 0:01:01.1]} 35... Nf3 {[%clk 0:00:43]}
36. Rg3 {[%clk 0:00:48.6]} 36... Ne5+ {[%clk 0:00:43]} 37. Kc3 {[%clk
0:00:48.6]} 37... Rf8 {[%clk 0:00:37]} 38. Ne3 {[%clk 0:00:47.4]} 38... Rf4
{[%clk 0:00:37.3]} 39. Nf5 {[%clk 0:00:45.4]} 39... g6 {[%clk 0:00:33.3]} 40.
Nd6 {[%clk 0:00:44.9]} 40... Kf8 {[%clk 0:00:27.8]} 41. Rg5 {[%clk 0:00:38.2]}
41... Nf3 {[%clk 0:00:17.4]} 42. Rg2 {[%clk 0:00:32.9]} 42... Ne5 {[%clk
0:00:17.4]} 43. a4 {[%clk 0:00:26]} 43... Ke7 {[%clk 0:00:17.4]} 44. Nc8+ {[%clk
0:00:25.5]} 44... Kd7 {[%clk 0:00:18.1]} 45. Nxa7 {[%clk 0:00:23.9]} 45... Rxe4
{[%clk 0:00:18.7]} 46. Kb3 {[%clk 0:00:20.4]} 46... Re3+ {[%clk 0:00:18.3]} 47.
Kc2 {[%clk 0:00:18.6]} 47... Ra3 {[%clk 0:00:16.1]} 48. Re2 {[%clk 0:00:07.3]}
48... Ra2+ {[%clk 0:00:13.7]} 49. Kd1 {[%clk 0:00:07]} 49... Rxe2 {[%clk
0:00:13.5]} 50. Kxe2 {[%clk 0:00:07.9]} 50... Nxc4 {[%clk 0:00:14]} 51. Nb5
{[%clk 0:00:08.8]} 51... Nb2 {[%clk 0:00:12.9]} 52. Nc3 {[%clk 0:00:08.5]} 52...
Kd6 {[%clk 0:00:11.9]} 53. Ke3 {[%clk 0:00:09]} 53... h6 {[%clk 0:00:06.9]} 54.
Ke4 {[%clk 0:00:07.8]} 54... h5 {[%clk 0:00:06.7]} 55. h4 {[%clk 0:00:07.7]}
55... Nc4 {[%clk 0:00:06.5]} 56. Nb5+ {[%clk 0:00:07.8]} 56... Kd7 {[%clk
0:00:06.8]} 57. Kf4 {[%clk 0:00:08]} 57... Nb2 {[%clk 0:00:04.7]} 58. Nc3 {[%clk
0:00:08.2]} 58... Kd6 {[%clk 0:00:05]} 59. Kg5 {[%clk 0:00:08.5]} 59... Nxa4
{[%clk 0:00:04.9]} 60. Nxa4 {[%clk 0:00:08]} 60... b5 {[%clk 0:00:05.5]} 61. Nb2
{[%clk 0:00:07]} 61... c4 {[%clk 0:00:04.3]} 62. Kxg6 {[%clk 0:00:07.2]} 62...
Kxd5 {[%clk 0:00:05]} 63. Kxh5 {[%clk 0:00:07.7]} 63... c3 {[%clk 0:00:05.6]}
64. Nd3 {[%clk 0:00:07.6]} 64... Kc4 {[%clk 0:00:05.6]} 65. Nc1 {[%clk
0:00:07.7]} 65... b4 {[%clk 0:00:06.2]} 66. Kg6 {[%clk 0:00:08]} 66... b3 {[%clk
0:00:06.8]} 67. Nxb3 {[%clk 0:00:03.4]} 67... Kxb3 {[%clk 0:00:06.9]} 68. h5
{[%clk 0:00:04.3]} 68... c2 {[%clk 0:00:07.6]} 69. h6 {[%clk 0:00:05.2]} 69...
c1=Q {[%clk 0:00:08.1]} 70. h7 {[%clk 0:00:06.1]} 70... Qc3 {[%clk 0:00:08.4]}
71. Kf7 {[%clk 0:00:06.3]} 71... Qh8 {[%clk 0:00:09.1]} 72. Kg6 {[%clk 0:00:07]}
72... Kc4 {[%clk 0:00:09.9]} 73. Kf7 {[%clk 0:00:07.9]} 73... Kd5 {[%clk
0:00:10.5]} 74. Kg6 {[%clk 0:00:08.8]} 74... Kd6 {[%clk 0:00:11.1]} 75. Kf7
{[%clk 0:00:09.7]} 75... Kd7 {[%clk 0:00:11.8]} 76. Kg6 {[%clk 0:00:10.6]} 76...
Ke8 {[%clk 0:00:12.3]} 77. Kh6 {[%clk 0:00:10.8]} 77... Kf7 {[%clk 0:00:13]} 78.
Kh5 {[%clk 0:00:11.3]} 78... Qxh7+ {[%clk 0:00:13.6]} 0-1

[Event "Early-Titled-Tuesday-Blitz-November-28-2023"]
[Site "Chess.com"]
[Date "2023.11.28"]
[Round "8"]
[White "Korchmar_Vasiliy"]
[Black "seopie"]
[Result "0-1"]
[WhiteElo "2722"]
[BlackElo "2871"]
[TimeControl "180+1"]
[EndTime "9:36:30 PST"]
[Termination "seopie won on time"]

1. e4 {[%clk 0:03:00.9]} 1... c5 {[%clk 0:03:00.2]} 2. d4 {[%clk 0:03:00.8]}
2... cxd4 {[%clk 0:03:00.1]} 3. Qxd4 {[%clk 0:03:01.7]} 3... Nc6 {[%clk
0:03:00]} 4. Qd3 {[%clk 0:03:02.3]} 4... g6 {[%clk 0:02:59.6]} 5. Nc3 {[%clk
0:03:02.6]} 5... Bg7 {[%clk 0:02:59.7]} 6. Nf3 {[%clk 0:03:03.3]} 6... d6 {[%clk
0:02:59.6]} 7. Be2 {[%clk 0:03:03.9]} 7... Nf6 {[%clk 0:02:59.6]} 8. O-O {[%clk
0:03:04.5]} 8... O-O {[%clk 0:02:59.9]} 9. Nd5 {[%clk 0:03:05.2]} 9... Nd7
{[%clk 0:02:55.8]} 10. c3 {[%clk 0:03:04.9]} 10... e6 {[%clk 0:02:53.1]} 11. Ne3
{[%clk 0:03:02.2]} 11... Nc5 {[%clk 0:02:53.2]} 12. Qc2 {[%clk 0:03:01.8]} 12...
Qe7 {[%clk 0:02:50.9]} 13. Rd1 {[%clk 0:02:59.9]} 13... Rd8 {[%clk 0:02:50.2]}
14. Ng4 {[%clk 0:02:30.1]} 14... e5 {[%clk 0:02:27.4]} 15. Ne3 {[%clk
0:02:01.3]} 15... Be6 {[%clk 0:02:27.2]} 16. Nd5 {[%clk 0:01:58]} 16... Bxd5
{[%clk 0:02:27.3]} 17. exd5 {[%clk 0:01:58.9]} 17... Nb8 {[%clk 0:02:27.3]} 18.
Bg5 {[%clk 0:01:55.1]} 18... Bf6 {[%clk 0:02:25.3]} 19. Be3 {[%clk 0:01:55.1]}
19... Nbd7 {[%clk 0:01:53.9]} 20. b4 {[%clk 0:01:55.1]} 20... Na6 {[%clk
0:01:52.6]} 21. Qb3 {[%clk 0:01:54.7]} 21... Nc7 {[%clk 0:01:51.5]} 22. c4
{[%clk 0:01:54.2]} 22... Ne8 {[%clk 0:01:47.5]} 23. Rac1 {[%clk 0:01:52.1]}
23... b6 {[%clk 0:01:45.4]} 24. h3 {[%clk 0:01:49.3]} 24... Bg7 {[%clk
0:01:45.3]} 25. Bg5 {[%clk 0:01:44.5]} 25... Bf6 {[%clk 0:01:44.9]} 26. Be3
{[%clk 0:01:44]} 26... Bg7 {[%clk 0:01:45.3]} 27. Rc2 {[%clk 0:01:17.9]} 27...
Nef6 {[%clk 0:01:44.3]} 28. Rdc1 {[%clk 0:01:14.5]} 28... Nh5 {[%clk 0:01:41.4]}
29. c5 {[%clk 0:01:05.1]} 29... bxc5 {[%clk 0:01:41]} 30. bxc5 {[%clk 0:01:06]}
30... Nxc5 {[%clk 0:01:41]} 31. Bxc5 {[%clk 0:01:06.2]} 31... dxc5 {[%clk
0:01:41.4]} 32. Rxc5 {[%clk 0:01:06.5]} 32... e4 {[%clk 0:01:39]} 33. Nh2 {[%clk
0:00:57.8]} 33... Nf4 {[%clk 0:01:37.9]} 34. Bf1 {[%clk 0:00:58.3]} 34... Qd6
{[%clk 0:01:31.9]} 35. Ng4 {[%clk 0:00:57]} 35... Nxd5 {[%clk 0:01:23.3]} 36.
Rc6 {[%clk 0:00:54.7]} 36... Qb8 {[%clk 0:01:15.4]} 37. Bc4 {[%clk 0:00:45.1]}
37... Qxb3 {[%clk 0:01:14.8]} 38. Bxb3 {[%clk 0:00:46]} 38... h5 {[%clk
0:01:10.8]} 39. Ne3 {[%clk 0:00:34.8]} 39... Nf4 {[%clk 0:01:10.9]} 40. R1c4
{[%clk 0:00:25.9]} 40... Ne2+ {[%clk 0:01:03.5]} 41. Kf1 {[%clk 0:00:23.2]}
41... Nd4 {[%clk 0:01:04.4]} 42. Rc7 {[%clk 0:00:20.2]} 42... a5 {[%clk
0:00:56.1]} 43. Re7 {[%clk 0:00:04.3]} 43... Nxb3 {[%clk 0:00:56.3]} 44. axb3
{[%clk 0:00:05.2]} 44... f5 {[%clk 0:00:53.1]} 45. Rcc7 {[%clk 0:00:03.5]} 45...
Bf8 {[%clk 0:00:50.4]} 46. Re6 {[%clk 0:00:02.7]} 46... Rd6 {[%clk 0:00:50.7]}
47. Re5 {[%clk 0:00:02.9]} 47... h4 {[%clk 0:00:46.5]} 48. Nd5 {[%clk 0:00:03]}
48... Rb8 {[%clk 0:00:40.7]} 49. Nf4 {[%clk 0:00:01.7]} 49... Rxb3 {[%clk
0:00:39]} 50. g4 {[%clk 0:00:01.6]} 50... hxg3 {[%clk 0:00:38.8]} 51. fxg3
{[%clk 0:00:02.1]} 51... Rxg3 {[%clk 0:00:38.6]} 52. Ne6 {[%clk 0:00:02.6]}
52... Rxh3 {[%clk 0:00:31.7]} 53. Rc8 {[%clk 0:00:02.6]} 53... Rxe6 {[%clk
0:00:30.9]} 54. Rxe6 {[%clk 0:00:03.5]} 54... Kf7 {[%clk 0:00:31.6]} 55. Ra6
{[%clk 0:00:02.9]} 55... Be7 {[%clk 0:00:21.4]} 56. Rc7 {[%clk 0:00:03.4]} 56...
Rh8 {[%clk 0:00:21.1]} 57. Rxa5 {[%clk 0:00:03.1]} 57... Re8 {[%clk 0:00:19.9]}
58. Ra6 {[%clk 0:00:03.3]} 58... g5 {[%clk 0:00:17.5]} 59. Ke2 {[%clk 0:00:03]}
59... f4 {[%clk 0:00:17.6]} 60. Rb6 {[%clk 0:00:02.5]} 60... Kf8 {[%clk
0:00:07.7]} 61. Rb5 {[%clk 0:00:02.3]} 61... e3 {[%clk 0:00:04.9]} 62. Rf5+
{[%clk 0:00:02.4]} 62... Kg7 {[%clk 0:00:05.2]} 63. Rxg5+ {[%clk 0:00:02.3]}
63... Kf6 {[%clk 0:00:05.8]} 64. Rg4 {[%clk 0:00:02.1]} 64... Kf5 {[%clk
0:00:05.7]} 65. Rg7 {[%clk 0:00:02.5]} 65... Bd6 {[%clk 0:00:05.8]} 66. Rcf7+
{[%clk 0:00:02.2]} 66... Ke4 {[%clk 0:00:05.8]} 67. Rg5 {[%clk 0:00:01.6]} 67...
Be5 {[%clk 0:00:05.8]} 68. Rg4 {[%clk 0:00:01.5]} 68... Ra8 {[%clk 0:00:05.2]}
69. Re7 {[%clk 0:00:02]} 69... Ra2+ {[%clk 0:00:05.4]} 70. Kd1 {[%clk
0:00:02.2]} 70... Kf3 {[%clk 0:00:05.1]} 71. Rh4 {[%clk 0:00:01.7]} 71... e2+
{[%clk 0:00:05.3]} 0-1